bitfinex/quotes_ETHUSD_20250807
["timestamp","ask_amount","ask_price","bid_price","bid_amount"]
[1754596239981,2.99371113,3872.8,3872.7,4.2158]
[1754596240182,2.99371113,3872.8,3872.7,0.1288]
[1754596240764,2.99371113,3872.8,3872.7,4.2158]
[1754596240965,3.43311113,3872.8,3872.7,4.2158]
[1754596241159,3.67352119,3872.8,3872.7,0.1288]
[1754596241363,2.5821778,3872.7,3872.6,4.087]
[1754596241591,1.14141006,3872.7,3871.3,6.201]
[1754596241793,2.58244454,3872.3,3872.2,0.1288]
[1754596241997,3.48344454,3872.3,3872.2,0.1288]
[1754596242561,2.58244454,3872.3,3872.2,0.1288]
[1754596243098,0.5016,3872.9,3872.2,0.1288]
[1754596243298,2.58244454,3872.3,3872.2,0.1288]
[1754596243466,2.58251123,3872.2,3872.1,4.087]
[1754596243663,2.58251123,3872.2,3871.3,6.6665]
[1754596243664,2.5827729,3871.9,3871.3,6.6665]
[1754596243906,2.58279159,3871.8,3871.4,7.087]
[1754596244075,0.901,3872.2,3871.4,7.087]
[1754596244076,0.901,3872.2,3871.8,0.1288]
[1754596244280,2.58264462,3872.0,3871.9,4.087]
[1754596244575,3.04424462,3872.0,3871.9,4.087]
[1754596244776,2.53304489,3871.4,3871.3,6.201]
[1754596245104,2.58289012,3871.7,3871.3,10.4168]
[1754596245409,2.71120272,3872.4,3871.4,0.9594]
[1754596245410,0.1288,3872.4,3871.4,0.9594]
[1754596245594,2.58278347,3871.8,3871.4,0.9594]
[1754596245765,2.58278347,3871.8,3871.4,0.4655]
[1754596245965,2.58272358,3871.9,3871.5,0.4939]
[1754596246204,2.58277803,3871.8,3871.7,0.1288]
[1754596246369,0.4616,3872.0,3871.3,6.201]
[1754596246569,2.58277803,3871.8,3871.7,4.2158]
[1754596246772,3.48377803,3871.8,3871.7,0.1288]
[1754596247005,3.48377803,3871.8,3871.7,4.2168]
[1754596247563,3.72461546,3871.8,3871.7,0.1288]
[1754596247768,2.58304489,3871.4,3871.3,6.201]
[1754596248099,2.58304489,3871.4,3871.3,10.289]
[1754596248306,2.58304489,3871.4,3871.3,10.4178]
[1754596248507,2.82405055,3871.4,3871.3,10.4178]
[1754596248908,3.04410062,3872.3,3871.3,14.9379]
[1754596249114,3.04410062,3872.3,3871.4,3.0]
[1754596249115,2.58272247,3871.9,3871.4,3.0]
[1754596249270,0.24099867,3871.8,3871.5,0.9594]
[1754596249470,0.4616,3872.3,3871.6,0.9594]
[1754596249471,0.24097784,3871.7,3871.6,0.9594]
[1754596249666,2.58265374,3872.0,3871.7,0.1288]
[1754596249904,2.58265374,3872.0,3871.6,5.0474]
[1754596249905,0.24097494,3871.9,3871.6,5.1762]
[1754596250170,0.24097494,3871.8,3871.7,0.9594]
[1754596250514,2.82338616,3872.4,3871.8,0.1288]
[1754596250810,0.24098883,3872.3,3871.7,1.0882]
[1754596251121,1.0298,3873.0,3872.3,0.1288]
[1754596251270,0.24099353,3872.8,3872.4,4.088]
[1754596251474,0.24099353,3872.7,3872.5,4.088]
[1754596251702,0.24099853,3872.6,3872.5,4.088]
[1754596252068,0.24099853,3872.6,3872.5,4.2168]
[1754596252473,3.02113506,3873.4,3872.5,4.2168]
[1754596252474,2.58171493,3873.4,3872.5,15.77539436]
[1754596252668,0.24100991,3872.8,3872.6,0.9594]
[1754596252891,2.58216462,3872.8,3872.7,0.1288]
[1754596253095,0.2410106,3872.8,3872.7,0.1288]
[1754596253428,0.24107606,3872.8,3872.7,0.1288]
[1754596253571,0.04,3872.9,3872.7,0.1288]
[1754596254018,0.04,3872.9,3872.7,0.5943]
[1754596254178,0.04,3872.9,3872.8,16.54999613]
[1754596254514,0.04,3872.9,3872.8,9.596782]
[1754596254677,0.04,3872.9,3872.8,14.243512]
[1754596255522,0.04,3872.9,3872.8,21.129151]
[1754596255728,0.04,3872.9,3872.8,15.048397]
[1754596255933,0.04,3872.9,3872.8,17.63050813]
[1754596256145,0.04,3872.9,3872.8,15.048397]
[1754596256342,0.04,3872.9,3872.8,16.80653313]
[1754596256500,0.04,3872.9,3872.8,26.96977413]
[1754596256695,0.04,3872.9,3872.8,23.43483213]
[1754596256950,0.04,3872.9,3872.8,20.852721]
[1754596257136,0.04,3872.9,3872.8,9.9970397]
[1754596257344,0.04,3872.9,3872.8,16.7935207]
[1754596257646,0.04,3872.9,3872.8,36.58662983]
[1754596257797,0.04,3872.9,3872.8,39.62956883]
[1754596257997,0.04,3872.9,3872.8,27.32438183]
[1754596258202,0.04,3872.9,3872.8,16.8661507]
[1754596258402,0.04,3872.9,3872.8,19.44826183]
[1754596258632,0.04,3872.9,3872.8,7.8995207]
[1754596258841,0.04,3872.9,3872.8,7.4056207]
[1754596259546,0.9663,3872.9,3872.8,4.086]
[1754596259700,3.54834867,3872.9,3872.8,4.086]
[1754596260750,3.78932458,3872.9,3872.8,4.086]
[1754596261048,2.58224448,3872.6,3872.5,4.086]
[1754596261406,3.50854448,3872.6,3872.5,4.086]
[1754596261971,3.74953063,3872.6,3872.5,4.086]
[1754596262449,3.74953063,3872.6,3870.9,3.05786324]
[1754596262450,2.58278539,3871.8,3870.9,3.05786324]
[1754596262746,2.58291145,3871.6,3871.1,4.086]
[1754596263042,2.58286546,3871.7,3871.2,3.0]
[1754596263338,2.581811,3873.3,3871.2,3.0]
[1754596263339,2.58217876,3872.7,3871.3,0.4745]
[1754596263544,0.4806,3872.3,3871.2,3.0]
[1754596263744,2.58283482,3871.8,3871.1,4.086]
[1754596263942,2.58283482,3871.8,3871.2,3.0]
[1754596264243,0.4806,3872.0,3871.2,3.0]
[1754596264444,2.58271133,3871.9,3871.2,3.0]
[1754596264653,2.58277828,3871.8,3871.2,3.0]
[1754596265204,2.58291157,3871.6,3871.2,3.0]
[1754596265632,2.58277828,3871.8,3871.0,6.201]
[1754596265633,0.95858722,3871.5,3871.0,6.201]
[1754596265836,3.50934489,3871.4,3871.3,4.087]
[1754596266764,0.4806,3872.3,3871.3,4.087]
[1754596267044,2.58264462,3872.0,3871.3,4.5615]
[1754596267356,2.58247821,3872.3,3871.4,3.141092]
[1754596267506,0.5206,3872.9,3871.4,3.141092]
[1754596267507,2.82358288,3872.2,3871.5,7.506951]
[1754596267706,0.24102666,3872.1,3871.5,7.506951]
[1754596267903,2.58211113,3872.8,3871.5,2.894759]
[1754596268103,2.58255632,3872.2,3871.4,0.4745]
[1754596268319,0.24100647,3872.1,3871.6,2.58286334]
[1754596268549,2.58218264,3872.7,3871.7,5.0284]
[1754596268858,0.24100788,3872.6,3871.8,15.076545]
[1754596269158,2.82332428,3872.5,3871.8,0.4745]
[1754596269452,0.24100788,3872.4,3871.8,0.4745]
[1754596269660,0.24100788,3872.3,3871.9,4.087]
[1754596269827,0.24100788,3872.2,3871.9,4.087]
[1754596270021,0.24100788,3872.1,3871.9,4.087]
[1754596270219,0.04,3872.9,3872.1,0.1288]
[1754596270419,0.24100449,3872.8,3872.0,1.0702]
[1754596270666,2.58229711,3872.6,3872.0,0.9414]
[1754596270849,0.24100449,3872.5,3872.0,0.9414]
[1754596271053,0.24100449,3872.4,3872.0,0.9414]
[1754596271361,3.30407214,3872.3,3872.1,4.087]
[1754596271545,0.24100449,3872.2,3872.1,4.087]
[1754596271939,0.24100449,3872.2,3872.1,4.2158]
[1754596272338,2.58219871,3872.7,3872.1,4.6903]
[1754596272660,0.24098525,3872.6,3872.1,4.6903]
[1754596272861,0.24098525,3872.5,3872.1,4.5615]
[1754596273067,2.58225504,3872.6,3872.1,4.5615]
[1754596273230,2.58225504,3872.6,3872.5,0.1288]
[1754596273556,2.82322955,3872.6,3872.5,4.2148]
[1754596273765,3.30382955,3872.6,3872.5,4.2148]
[1754596273963,2.82322955,3872.6,3872.5,4.2148]
[1754596274669,3.30382955,3872.6,3872.5,4.2148]
[1754596274865,3.74952955,3872.6,3872.5,0.1288]
[1754596275044,3.74952955,3872.6,3872.5,4.2148]
[1754596276252,0.04,3872.9,3872.8,2.58211113]
[1754596276449,0.04,3872.9,3872.8,27.80075261]
[1754596276635,0.04,3872.9,3872.8,24.92581461]
[1754596276973,0.04,3872.9,3872.8,8.97601048]
[1754596277165,0.04,3872.9,3872.8,3.19296048]
[1754596277465,0.04,3872.9,3872.6,3.0]
[1754596278270,0.04,3872.9,3872.6,3.4745]
[1754596278682,0.04,3872.9,3872.6,3.0]
[1754596280379,0.002,3873.3,3873.2,5.58184446]
[1754596280578,0.002,3874.1,3873.8,2.58144457]
[1754596280876,0.002,3874.1,3873.8,39.10000761]
[1754596281069,0.002,3874.1,3874.0,5.5813113]
[1754596281373,0.044,3874.9,3874.1,5.58124467]
[1754596281582,0.044,3874.9,3874.1,26.04530867]
[1754596281871,0.044,3874.9,3874.1,16.83001367]
[1754596282074,0.044,3874.9,3874.1,13.64434167]
[1754596282572,0.044,3874.9,3874.1,20.18571167]
[1754596282945,0.044,3874.9,3874.1,20.73571167]
[1754596283458,0.044,3874.9,3874.1,11.15864467]
[1754596283863,0.04,3876.9,3874.2,0.55]
[1754596284065,0.143359,3876.9,3875.7,10.58274437]
[1754596284275,0.04,3876.9,3875.8,22.42053849]
[1754596284473,0.04,3876.9,3875.8,16.40470649]
[1754596284650,2.57952175,3876.7,3875.8,12.545607]
[1754596284974,0.04,3876.9,3875.8,15.32139682]
[1754596285144,0.04,3876.9,3875.8,36.10659433]
[1754596285344,0.10134761,3877.3,3876.4,10.58274437]
[1754596285580,0.10134761,3877.3,3876.5,4.144]
[1754596285783,0.51283976,3877.2,3876.3,4.148]
[1754596285991,0.51283976,3877.2,3876.2,4.148]
[1754596285992,0.4457,3877.1,3876.2,4.148]
[1754596286301,2.57918085,3877.2,3877.1,0.1288]
[1754596286592,0.10134761,3877.3,3877.2,14.36237085]
[1754596286751,0.02577,3879.0,3877.2,11.22658085]
[1754596286945,0.02577,3879.0,3877.8,16.71152615]
[1754596287149,0.02577,3879.0,3877.8,49.71462815]
[1754596287381,0.02577,3879.0,3877.8,31.06987415]
[1754596287587,0.02577,3879.0,3877.8,34.22611015]
[1754596287880,0.02577,3879.0,3877.8,37.43538515]
[1754596288285,0.02577,3879.0,3877.8,37.8311529]
[1754596288447,1e-08,3878.0,3877.9,6.12871528]
[1754596288653,0.02577,3879.0,3878.8,3.12811694]
[1754596288851,0.27869488,3879.9,3879.0,2.57798401]
[1754596289048,0.27837945,3879.9,3879.8,0.1288]
[1754596289278,0.04,3879.9,3879.8,4.2998]
[1754596289516,0.9686,3879.9,3879.0,4.171]
[1754596289695,2.57758531,3879.6,3877.3,2.57910867]
[1754596289871,0.27788087,3879.9,3877.6,2.57887465]
[1754596289872,2.57817631,3878.8,3877.6,2.57887465]
[1754596290072,2.57837255,3878.5,3877.4,4.6357]
[1754596290272,0.472,3878.4,3877.5,4.178]
[1754596290572,0.4566,3878.7,3877.6,4.177]
[1754596290772,0.4566,3878.7,3877.7,4.18]
[1754596290773,3.03478562,3878.7,3877.7,4.18]
[1754596290992,0.472,3878.8,3877.7,4.18]
[1754596291295,0.4566,3879.2,3877.8,6.360154]
[1754596291296,2.5781108,3878.9,3877.8,6.360154]
[1754596291477,0.03222646,3878.8,3877.8,3.0]
[1754596291649,2.57818341,3878.7,3877.1,0.23577081]
[1754596291859,2.5786527,3878.0,3877.2,4.179]
[1754596292096,2.57909531,3877.4,3877.2,4.179]
[1754596292393,3.50771433,3877.3,3877.2,4.179]
[1754596292891,0.472,3878.2,3877.2,4.179]
[1754596293087,0.472,3878.2,3877.3,3.0]
[1754596293304,2.57863832,3878.1,3877.3,3.0]
[1754596293509,0.472,3878.2,3877.3,3.0]
[1754596293671,0.472,3879.2,3877.5,0.55]
[1754596293868,0.472,3879.6,3877.9,10.58274437]
[1754596294076,2.57778072,3879.4,3878.3,3.0]
[1754596294283,2.57786005,3879.2,3878.4,4.19]
[1754596294510,2.57799823,3879.0,3878.5,4.19]
[1754596294712,3.05005358,3878.9,3878.5,4.19]
[1754596294870,0.9286,3878.8,3878.6,4.189]
[1754596295075,2.57818341,3878.7,3878.6,4.189]
[1754596295274,0.9286,3878.7,3877.5,3.0]
[1754596295474,0.9286,3878.6,3877.5,4.19]
[1754596295675,2.57868803,3878.0,3877.5,4.19]
[1754596295907,0.9286,3878.5,3877.5,4.19]
[1754596296080,0.77472,3878.1,3877.5,4.19]
[1754596296279,0.4566,3878.9,3877.5,4.19]
[1754596296514,0.4566,3878.9,3877.9,2.57870083]
[1754596296679,0.774582,3878.7,3878.0,4.189]
[1754596296882,2.57824577,3878.7,3878.0,4.189]
[1754596297086,2.57819719,3878.7,3878.0,4.189]
[1754596297407,0.774582,3878.8,3878.0,4.189]
[1754596297591,0.002,3878.9,3878.0,4.6497]
[1754596297790,2.58005711,3878.9,3878.0,4.6497]
[1754596298097,2.58005711,3878.9,3878.0,7.22833783]
[1754596298098,0.002,3878.9,3878.0,7.22833783]
[1754596298409,2.57836564,3878.5,3878.0,4.189]
[1754596298573,0.472,3878.5,3877.4,3.4607]
[1754596298906,0.472,3878.4,3877.6,3.0]
[1754596299108,0.002,3878.9,3878.0,2.57858922]
[1754596299274,2.58006299,3878.9,3878.1,4.184]
[1754596299476,2.58006299,3878.9,3878.1,4.194]
[1754596299477,1.94003818,3878.8,3878.1,4.194]
[1754596299679,2.57845703,3878.3,3878.1,4.194]
[1754596299979,3.5071158,3878.2,3878.1,4.194]
[1754596300319,2.57824988,3878.6,3878.0,4.196]
[1754596300496,0.472,3878.7,3878.3,0.1288]
[1754596300697,0.472,3878.6,3878.3,0.1288]
[1754596300908,2.57838283,3878.4,3878.3,0.1288]
[1754596301113,0.1308,3878.9,3878.2,4.194]
[1754596301114,0.002,3878.9,3878.2,4.194]
[1754596301282,2.58011436,3878.9,3878.7,0.1288]
[1754596301477,3.35269094,3878.8,3878.7,0.1288]
[1754596301677,4.28129094,3878.8,3878.7,0.1288]
[1754596301906,2.57837545,3878.5,3878.3,4.201]
[1754596302110,0.472,3878.4,3878.3,4.201]
[1754596302514,3.35269873,3878.8,3878.3,4.3298]
[1754596302515,0.774574,3878.8,3878.3,4.3298]
[1754596302678,2.57816994,3878.8,3878.3,4.3298]
[1754596302878,0.002,3878.9,3878.7,0.1288]
[1754596303084,0.002,3878.9,3878.8,4.207]
[1754596303284,0.002,3878.9,3878.8,4.3358]
[1754596303506,0.002,3878.9,3878.8,0.1288]
[1754596303709,0.002,3878.9,3878.8,4.3348]
[1754596305013,0.002,3878.9,3878.8,4.09064578]
[1754596305819,0.23959006,3878.9,3878.8,4.09064578]
[1754596306018,0.002,3878.9,3878.8,4.09064578]
[1754596306417,0.23959006,3878.9,3878.8,4.09064578]
[1754596306935,0.23959006,3878.9,3878.8,10.56826272]
[1754596307107,0.002,3878.9,3878.8,18.57289015]
[1754596307496,0.002,3878.9,3878.8,21.15100709]
[1754596307730,0.002,3878.9,3878.8,21.70100709]
[1754596307946,0.002,3878.9,3878.8,21.57220709]
[1754596308231,0.002,3878.9,3878.8,29.57226209]
[1754596309085,0.002,3878.9,3878.8,21.70100709]
[1754596309290,0.002,3878.9,3878.8,23.73933109]
[1754596309621,0.24097284,3878.9,3878.8,13.55176694]
[1754596309820,0.24097284,3878.9,3878.8,13.99056694]
[1754596310022,0.002,3878.9,3878.8,11.35241694]
[1754596310193,0.24097893,3878.9,3878.8,11.35241694]
[1754596310387,0.24132249,3878.9,3878.8,14.15236894]
[1754596311024,0.002,3878.9,3878.8,11.35241694]
[1754596311337,0.24131907,3878.9,3878.8,4.5783]
[1754596311544,0.24131907,3878.9,3878.8,3.1288]
[1754596311845,0.24131907,3878.9,3878.8,45.17638078]
[1754596311988,0.002,3878.9,3878.8,10.90161694]
[1754596312307,0.002,3878.9,3878.8,30.31923878]
[1754596312487,0.24174949,3878.9,3878.8,28.93445978]
[1754596312691,0.24174949,3878.9,3878.8,24.22732304]
[1754596312886,0.24174949,3878.9,3878.8,26.63547504]
[1754596313134,0.24174949,3878.9,3878.8,26.63548129]
[1754596313432,0.24174949,3878.9,3878.8,23.78852929]
[1754596313720,0.24174949,3878.9,3878.8,7.3308]
[1754596313923,0.71374949,3878.9,3878.8,7.3278]
[1754596314123,0.24174949,3878.9,3878.8,10.01418394]
[1754596314321,0.24174949,3878.9,3878.8,7.46804894]
[1754596314504,0.24174949,3878.9,3878.8,11.57817194]
[1754596314901,0.24174949,3878.9,3878.8,12.58887194]
[1754596315102,0.24174949,3878.9,3878.8,6.49386494]
[1754596315304,0.24174949,3878.9,3878.8,13.26998188]
[1754596315515,0.24238629,3878.9,3878.8,30.59851033]
[1754596315694,0.24238629,3878.9,3878.8,16.98240233]
[1754596316090,0.24238629,3878.9,3878.8,9.30678539]
[1754596316428,0.24238629,3878.9,3878.8,13.26760233]
[1754596317038,0.24238629,3878.9,3878.8,13.72830233]
[1754596317221,0.24238629,3878.9,3878.8,14.16710233]
[1754596317531,0.24238629,3878.9,3878.8,17.67190333]
[1754596317733,0.24238629,3878.9,3878.8,18.11070333]
[1754596318511,0.24238629,3878.9,3878.8,31.00457733]
[1754596318706,0.24238629,3878.9,3878.8,24.18962533]
[1754596318909,0.24238629,3878.9,3878.8,19.99662533]
[1754596319132,0.24238629,3878.9,3878.8,13.24120333]
[1754596319430,0.24238629,3878.9,3878.8,14.16130333]
[1754596319599,0.24238629,3878.9,3878.8,10.95845633]
[1754596319800,0.24238629,3878.9,3878.8,20.91426433]
[1754596320202,0.24238629,3878.9,3878.8,20.44536433]
[1754596320415,0.24238629,3878.9,3878.8,17.11730939]
[1754596320631,0.24238629,3878.9,3878.8,18.49776433]
[1754596321033,0.24238629,3878.9,3878.8,18.35732494]
[1754596321034,0.002,3878.9,3878.8,18.35732494]
[1754596321235,0.24261354,3878.9,3878.8,18.49789572]
[1754596321421,0.24261354,3878.9,3878.8,11.72877878]
[1754596321744,0.24260751,3878.9,3878.8,19.09388033]
[1754596322105,0.4719,3879.4,3879.0,19.75739249]
[1754596322319,0.4719,3879.3,3879.1,7.32457339]
[1754596322645,0.4706,3879.4,3879.3,0.1288]
[1754596322842,0.4706,3879.4,3879.3,4.183]
[1754596323207,0.4719,3879.6,3879.3,4.183]
[1754596323860,0.4719,3879.5,3879.3,4.183]
[1754596324076,0.4719,3879.5,3879.4,0.1288]
[1754596324380,0.9425,3879.5,3879.4,0.1288]
[1754596324725,3.04825175,3879.5,3879.4,0.1288]
[1754596324926,0.9425,3879.5,3879.4,0.1288]
[1754596325120,3.52015175,3879.5,3879.4,0.1288]
[1754596325334,0.9425,3879.5,3879.4,0.1288]
[1754596325760,0.9425,3879.5,3879.4,0.31984562]
[1754596326975,3.52015175,3879.5,3879.4,0.1288]
[1754596327160,3.52015175,3879.5,3879.0,20.75739249]
[1754596327161,2.57778009,3879.4,3879.2,4.172]
[1754596327330,0.04,3879.9,3879.3,4.177]
[1754596327531,0.04,3879.9,3879.3,4.3058]
[1754596327748,0.04,3879.9,3879.0,20.75739249]
[1754596327749,2.57791755,3879.1,3879.0,20.75739249]
[1754596328165,3.52041755,3879.1,3879.0,20.75739249]
[1754596328829,0.9425,3879.1,3879.0,20.75739249]
[1754596329245,3.52041755,3879.1,3879.0,24.93339249]
[1754596330042,3.52041755,3879.1,3879.0,24.93239249]
[1754596330236,0.9425,3879.1,3879.0,24.93239249]
[1754596330440,0.4719,3879.7,3879.0,25.06119249]
[1754596330669,0.4719,3879.7,3879.0,24.93239249]
[1754596330900,2.57791755,3879.1,3879.0,20.75739249]
[1754596331056,3.52041755,3879.1,3879.0,24.93339249]
[1754596331661,3.52041755,3879.1,3879.0,20.75739249]
[1754596332396,3.52041755,3879.1,3879.0,24.93239249]
[1754596333473,3.52041755,3879.1,3879.0,20.75739249]
[1754596333796,3.64921755,3879.1,3879.0,20.75739249]
[1754596334266,3.89029461,3879.1,3879.0,20.75739249]
[1754596335303,3.89029461,3879.1,3879.0,24.92639249]
[1754596335304,0.36987706,3879.1,3879.0,24.92639249]
[1754596335799,3.41969461,3879.1,3879.0,24.92639249]
[1754596335956,0.24107706,3879.1,3879.0,25.05519249]
[1754596336159,3.29089461,3879.1,3879.0,20.88619249]
[1754596336356,3.76149461,3879.1,3879.0,20.75739249]
[1754596337282,3.76149461,3879.1,3879.0,20.50586357]
[1754596337693,3.76149461,3879.1,3879.0,24.67686357]
[1754596338006,3.76149461,3879.1,3879.0,24.67386357]
[1754596338158,3.7614088,3879.1,3879.0,20.50586357]
[1754596338555,3.7614088,3879.1,3879.0,24.67386357]
[1754596339193,0.24099125,3879.1,3879.0,37.40174441]
[1754596339352,0.24099125,3879.1,3879.0,38.32184441]
[1754596339802,0.24099125,3879.1,3879.0,20.50586357]
[1754596340101,0.24099125,3879.1,3879.0,24.67886357]
[1754596340300,0.24299125,3879.1,3879.0,24.67886357]
[1754596340503,0.002,3879.1,3879.0,25.59896357]
[1754596340856,0.002,3879.1,3879.0,31.17694758]
[1754596341303,0.002,3879.1,3879.0,31.72894758]
[1754596341514,0.002,3879.1,3879.0,42.15322858]
[1754596341801,0.002,3879.1,3879.0,30.44788257]
[1754596341958,0.002,3879.1,3879.0,27.67886357]
[1754596342499,0.002,3879.1,3879.0,28.14776357]
[1754596342701,0.002,3879.1,3879.0,23.50586357]
[1754596343005,0.002,3879.1,3879.0,24.67786357]
[1754596343207,0.002,3879.1,3879.0,20.50586357]
[1754596343442,2.57805047,3878.9,3878.8,1e-08]
[1754596343557,2.57831635,3878.5,3878.4,0.001]
[1754596343764,0.24094989,3878.5,3878.4,4.182]
[1754596343964,0.002,3879.1,3878.4,4.182]
[1754596344311,0.24096029,3879.0,3878.4,4.182]
[1754596344608,0.24096246,3878.9,3878.5,4.183]
[1754596344767,2.57822344,3878.7,3878.6,4.181]
[1754596344960,3.2897859,3878.7,3878.6,4.181]
[1754596345163,0.71156246,3878.7,3878.6,4.181]
[1754596345366,0.24096246,3878.7,3878.6,4.181]
[1754596346105,0.24096246,3878.7,3878.6,4.6499]
[1754596346306,0.24096246,3878.7,3878.6,4.7787]
[1754596346507,0.24096246,3878.7,3878.6,5.2299]
[1754596346705,0.24096246,3879.0,3878.6,4.7787]
[1754596346871,0.002,3879.1,3879.0,0.1288]
[1754596347070,0.9425,3879.0,3878.4,0.001]
[1754596347372,2.81901108,3878.9,3878.5,4.178]
[1754596347592,2.81904751,3878.8,3878.6,4.178]
[1754596347912,0.24092435,3878.7,3878.4,0.001]
[1754596348063,0.24093706,3878.6,3878.5,4.178]
[1754596348263,0.4706,3878.8,3878.5,4.178]
[1754596348473,0.24095617,3878.7,3878.5,4.3068]
[1754596348671,0.4719,3879.0,3878.7,0.1288]
[1754596348909,1.22298169,3878.9,3878.6,0.1288]
[1754596349064,2.57831635,3878.5,3878.4,0.1298]
[1754596349382,0.24099132,3878.5,3878.4,4.176]
[1754596350890,0.002,3879.1,3878.4,5.2357]
[1754596351216,0.24097234,3879.0,3878.5,0.472]
[1754596351393,0.24097234,3879.0,3878.4,0.5887]
[1754596351394,0.24097234,3878.9,3878.6,4.171]
[1754596351597,0.002,3879.1,3878.9,0.1288]
[1754596351764,0.002,3879.1,3879.0,4.177]
[1754596351965,0.24295946,3879.1,3879.0,0.1288]
[1754596352165,1.19275946,3879.1,3879.0,4.175]
[1754596352410,2.82089797,3879.1,3879.0,4.175]
[1754596352721,2.57805047,3878.9,3878.4,0.001]
[1754596352867,2.57858229,3878.1,3878.0,0.001]
[1754596353067,2.81954175,3878.1,3878.0,0.001]
[1754596353319,3.76934175,3878.1,3878.0,0.001]
[1754596354967,2.57871528,3877.9,3877.8,1e-08]
[1754596355167,2.57884828,3877.7,3877.6,1e-08]
[1754596355399,2.85204334,3877.7,3877.6,1e-08]
[1754596355571,3.76960774,3877.7,3877.6,1e-08]
[1754596355771,3.28681089,3877.7,3877.6,1e-08]
[1754596355967,3.76961089,3877.7,3877.6,1e-08]
[1754596356918,3.28681089,3877.7,3877.6,1e-08]
[1754596357431,3.76961089,3877.7,3877.6,1e-08]
[1754596359013,2.57918085,3877.2,3876.8,0.001]
[1754596359174,2.82014346,3877.2,3876.8,0.001]
[1754596359568,3.30294346,3877.2,3876.8,0.001]
[1754596359800,3.76994346,3877.2,3876.8,0.001]
[1754596360320,3.76944674,3877.2,3876.8,0.001]
[1754596360508,3.28664674,3877.2,3876.8,0.001]
[1754596360686,3.3188865,3877.2,3876.8,0.001]
[1754596361924,2.57938043,3876.9,3876.8,0.001]
[1754596362264,2.81960362,3876.9,3876.8,0.001]
[1754596362392,3.76940362,3876.9,3876.8,0.001]
[1754596362779,3.89820362,3876.9,3876.8,0.001]
[1754596363222,2.57984624,3876.2,3876.1,1e-08]
[1754596363509,2.9811175,3876.2,3876.1,1e-08]
[1754596363671,3.9309175,3876.2,3876.1,1e-08]
[1754596364007,2.58051197,3875.2,3874.7,4.7728]
[1754596364206,2.94953516,3875.2,3874.7,4.7728]
[1754596364414,2.94953516,3875.2,3874.7,4.3008]
[1754596364575,2.94953516,3875.2,3875.1,0.512]
[1754596364787,3.14098153,3875.2,3875.1,0.512]
[1754596364993,0.56003092,3875.2,3875.1,0.512]
[1754596365194,0.23978455,3875.7,3875.1,5.1389]
[1754596365401,0.467,3876.2,3875.1,0.512]
[1754596365402,2.58051197,3875.2,3875.1,0.512]
[1754596365605,2.82029652,3875.2,3875.1,4.68]
[1754596365801,2.82029652,3875.2,3875.1,4.3368]
[1754596366001,0.23978455,3875.2,3875.1,0.512]
[1754596366221,0.23978455,3875.3,3875.1,5.1389]
[1754596366423,0.23978455,3875.4,3875.2,0.9309]
[1754596366601,0.23978455,3875.4,3875.1,4.3368]
[1754596366602,0.23978455,3875.9,3875.4,0.1288]
[1754596366808,0.23978455,3875.8,3875.5,0.9309]
[1754596367125,2.70879866,3876.0,3875.6,0.472]
[1754596367126,0.23978455,3875.7,3875.6,0.472]
[1754596367424,2.70879866,3876.0,3875.6,0.472]
[1754596367425,0.23978455,3875.9,3875.6,0.472]
[1754596367629,2.58037879,3875.4,3875.3,4.2978]
[1754596367842,2.58051197,3875.2,3875.1,0.04]
[1754596368045,2.58051197,3875.2,3875.1,4.207]
[1754596368343,2.58051197,3875.2,3875.1,0.04]
[1754596368572,2.81975039,3875.2,3875.1,4.207]
[1754596368727,2.81975039,3875.2,3875.1,0.04]
[1754596369058,2.81975039,3875.2,3875.1,4.206]
[1754596369205,2.81975039,3875.2,3875.1,4.205]
[1754596369620,0.23923842,3875.2,3875.1,4.677]
[1754596370028,0.23923842,3875.3,3875.1,4.8058]
[1754596370235,2.5803902,3875.4,3875.1,4.3338]
[1754596370421,0.23923842,3875.3,3875.2,0.472]
[1754596370598,2.58044538,3875.3,3875.2,0.472]
[1754596370797,2.8196838,3875.3,3875.2,4.636]
[1754596370999,2.8196838,3875.3,3875.1,0.1688]
[1754596371000,2.58051197,3875.2,3875.1,0.04]
[1754596371328,2.81975039,3875.2,3875.1,4.204]
[1754596371498,2.81975039,3875.2,3875.1,4.203]
[1754596371698,2.81975039,3875.2,3875.1,0.04]
[1754596373535,3.80180678,3875.2,3875.1,0.04]
[1754596373734,3.76956542,3875.2,3875.1,0.04]
[1754596373933,2.58077712,3874.9,3874.8,4.159]
[1754596374244,2.94888709,3874.9,3874.8,4.159]
[1754596374448,2.94888709,3874.9,3874.8,4.631]
[1754596374449,2.82002173,3874.9,3874.8,4.631]
[1754596374752,2.58091157,3874.6,3874.5,0.1288]
[1754596374922,2.58086328,3874.7,3874.5,0.1288]
[1754596375124,2.58086328,3874.7,3874.6,4.157]
[1754596375349,0.23926817,3874.7,3874.4,0.1288]
[1754596375525,2.58117804,3874.2,3874.1,4.16]
[1754596375728,2.58112034,3874.3,3874.1,4.16]
[1754596375954,0.1288,3874.5,3874.1,4.16]
[1754596375955,2.58117804,3874.2,3874.1,4.16]
[1754596376156,2.58112194,3874.3,3874.1,4.16]
[1754596376359,0.775556,3874.7,3874.1,4.16]
[1754596376657,2.82027128,3874.6,3874.3,0.1288]
[1754596376840,0.23930988,3874.5,3874.3,0.1288]
[1754596377015,0.23930988,3874.4,3874.3,0.1288]
[1754596377220,0.23930988,3874.4,3874.3,4.2868]
[1754596377438,0.23930988,3874.4,3874.3,4.7588]
[1754596377640,0.23930988,3874.4,3874.3,4.7568]
[1754596377641,2.82035468,3874.4,3874.3,4.7568]
[1754596377851,2.82035468,3874.4,3874.3,0.6008]